[Event "10th Cesme Open-A 2024"]
[Site "Cesme"]
[Date "2024.06.27"]
[Round "5"]
[White "Bernadskiy, Vitaliy"]
[Black "Zerey, Demhat"]
[Result "1/2-1/2"]
[ECO "C78"]
[WhiteElo "2563"]
[BlackElo "2038"]
[Annotator "TA"]
[PlyCount "62"]
[EventDate "2024.06.23"]
[EventType "swiss"]
[EventCountry "TUR"]
[SourceTitle "playchess.com"]
[Source "ChessBase"]
[SourceQuality "1"]
[TimeControl "5400+30"]

{[%evp 17,62,30,54,0,23,0,2,14,28,28,31,40,61,13,28,3,6,14,9,15,12,-62,0,-72,-63,-139,-146,-146,-132,-118,0,0,31,18,20,19,20,0,0,0,0,0,0,0,0,0,0]} 1. e4 {[%emt 0:01:00]} e5 {[%emt 0:01:00]} 2. Nf3 {[%emt 0:00:30]} Nc6 {[%emt 0:00:30]} 3. Bb5 {[%emt 0:00:00]} a6 {[%emt 0:00:30]} 4. Ba4 {[%emt 0:00:00]} Nf6 {[%emt 0:01:30]} 5. O-O {[%emt 0:00:00]} b5 {[%emt 0:00:00]} 6. Bb3 {[%emt 0:00:00]} Bc5 {[%emt 0:00:00]} 7. a4 {[%emt 0:00:30][%cal Ba2a4,Ba4a5][%mdl 32]} Rb8 {[%emt 0:00:30]} 8. c3 {[%emt 0:00:00]} d6 {[%emt 0:00:30]} 9. d4 {[%emt 0:00:00]} Bb6 {[%emt 0:00:30]} 10. a5 {[%emt 0:00:00]} Ba7 {[%emt 0:00:00]} 11. h3 {[%emt 0:00:00]} O-O {[%emt 0:01:00]} 12. Be3 {[%emt 0:00:30]} Re8 {[%emt 0:01:30]} (12... Nxe4 13. Bd5 exd4 14. Nxd4 Nxd4 15. Bxe4 $11) 13. dxe5 {[%emt 0:04:30]} Bxe3 $1 {[%emt 0:02:30]} 14. exf6 {[%emt 0:00:00]} Bf4 {[%emt 0:01:30]} 15. Bd5 {[%emt 0:00:00]} (15. Qd5 $1 $14 {deserves consideration.} Ne5 (15... Be6 16. Qxc6 Bxb3 17. Qxa6 $14) 16. Nxe5) 15... Ne5 $11 {[%emt 0:11:30]} 16. fxg7 {[%emt 0:00:30] next Na3 is good for White.} Qf6 $1 {[%emt 0:03:30]} 17. Nxe5 {[%emt 0:00:30]} Rxe5 {[%emt 0:04:30]} 18. Qf3 {[%emt 0:00:30]} Rg5 {[%emt 0:05:30]} 19. Na3 {[%emt 0:00:30]} ({White should try} 19. Re1 $11) 19... Rxg7 {[%emt 0:07:30]} ({Black should play} 19... Qh6 $1 $15 20. Kh1 (20. Qxf4 $2 {is the wrong capture.} Rxg2+ 21. Kxg2 Qxf4 $19) 20... Rxg7) 20. Nc2 {[%emt 0:03:30]} (20. Rfd1 $11) 20... Qh6 $1 $17 {[%emt 0:07:30][%mdl 1024] Black has strong compensation.} 21. Kh1 {[%emt 0:00:30]} (21. g3 $15) 21... Bg4 $1 {[%emt 0:03:30]} 22. Qd3 {[%emt 0:00:30] [#]} c5 {[%emt 0:01:30] Inhibits Nd4. And now ...c4 would win.} 23. Rg1 {[%emt 0:05:30] [#]} c4 {[%emt 0:05:30]} (23... Kh8 $1 $17 {Hoping for ...c4.} 24. b3 Rf8) 24. Qf1 $36 {[%emt 0:00:30][%mdl 2048] White is pushing.} Kh8 {[%emt 0:02:30] [#]} (24... Qh5 $5 25. Nd4 Rg6 $16) 25. Ne3 $1 {[%emt 0:04:30]} Bxe3 {[%emt 0:04:30] The position is equal.} 26. fxe3 {[%emt 0:00:30]} Qxe3 {[%emt 0:01:30][%cal Ob8g8]} 27. Qe1 {[%emt 0:05:30]} (27. hxg4 $2 Qh6#) 27... Qh6 {[%emt 0:00:30][%cal Og4h3] ( -> ...Bxh3!)} 28. Kh2 {[%emt 0:00:30]} Bxh3 {[%emt 0:04:30]} 29. gxh3 {[%emt 0:00:30]} Qf4+ {[%emt 0:00:30]} 30. Kh1 $1 {[%emt 0:00:30]} ({Wrong is} 30. Rg3 $2 Rbg8 31. Qe3 Qxg3+ $19) 30... Qf3+ {[%emt 0:00:30]} 31. Kh2 {[%emt 0:00:30]} Qf4+ $1 {[%emt 0:00:00] Weighted Error Value: White=0.19 (very precise) /Black=0.11 (very precise) .  Mistake:       	White=4     	Black=2      Inaccurate:     	---       	Black=1      OK:         	White=5     	Black=9      Best:        	White=2     	Black=2      Strong:       	White=1     	Black=5      Brilliant:      	White=1     	---} 1/2-1/2

[Event "10th Cesme Open-A 2024"]
[Site "Cesme"]
[Date "2024.06.27"]
[Round "5"]
[White "Kovalev, Vladislav"]
[Black "Bicer, Atakan Mert"]
[Result "1-0"]
[ECO "B12"]
[WhiteElo "2559"]
[BlackElo "2313"]
[Annotator "TA"]
[PlyCount "77"]
[EventDate "2024.06.23"]
[EventType "swiss"]
[EventCountry "TUR"]
[SourceTitle "playchess.com"]
[Source "ChessBase"]
[SourceQuality "1"]
[TimeControl "5400+30"]

{[%evp 11,77,3,19,7,12,13,21,22,25,28,35,15,31,40,31,18,16,0,0,0,0,0,0,0,0,0,0,0,0,0,0,0,0,0,0,0,0,0,0,0,0,0,0,0,0,-29,-29,-32,-39,-91,49,63,39,39,50,44,51,75,295,297,496,270,781,776,799,787,1215,1206]} 1. e4 {[%emt 0:01:00]} c6 {[%emt 0:01:00]} 2. d4 {[%emt 0:01:30]} d5 {[%emt 0:00:30]} 3. e5 {[%emt 0:00:30]} Bf5 {[%emt 0:00:00]} 4. h4 {[%emt 0:00:00]} h5 {[%emt 0:00:00]} 5. Bd3 {[%emt 0:00:00]} Bxd3 {[%emt 0:00:30]} 6. Qxd3 {[%emt 0:00:00]} e6 {[%emt 0:00:00]} 7. Bg5 {[%emt 0:00:00]} Be7 {[%emt 0:01:00]} 8. Nf3 {[%emt 0:01:30]} Nh6 {[%emt 0:03:30]} 9. Nc3 {[%emt 0:02:30] The position is equal.} a6 {[%emt 0:10:30]} 10. Ne2 {[%emt 0:11:30]} c5 {[%emt 0:16:30]} 11. dxc5 {[%emt 0:09:30]} Qa5+ {[%emt 0:01:30]} 12. c3 {[%emt 0:02:30]} Qxc5 {[%emt 0:00:30]} 13. Bxh6 {[%emt 0:05:30]} Rxh6 {[%emt 0:00:00][%cal Bh8h6,Bh6g6,Bg6g4][%mdl 32]} 14. Ned4 {[%emt 0:04:30]} Nd7 {[%emt 0:02:00]} 15. O-O {[%emt 0:02:30]} Qc7 {[%emt 0:12:30]} 16. Rae1 {[%emt 0:03:30]} Rg6 {[%emt 0:03:30]} 17. Re3 {[%emt 0:15:30]} O-O-O {[%emt 0:09:30]} 18. g3 {[%emt 0:08:30]} Kb8 {[%emt 0:05:30]} 19. Kg2 {[%emt 0:00:30]} Rh8 {[%emt 0:00:30]} 20. Rh1 {[%emt 0:03:30]} Rg4 {[%emt 0:04:30]} 21. Qe2 {[%emt 0:00:30]} Nc5 {[%emt 0:04:30]} 22. Nd2 {[%emt 0:11:15][%cal Bf3d2,Bd2b3,Bb3d4,Bd4e6,Be6c5][%mdl 32]} Na4 {[%emt 0:02:30]} 23. f3 {[%emt 0:02:37]} Rg6 {[%emt 0:00:30]} 24. N2b3 {[%emt 0:00:20]} Qd8 {[%emt 0:02:46]} 25. Kf2 {[%emt 0:02:54]} Qb6 {[%emt 0:00:39]} 26. Qc2 {[%emt 0:01:35]} Rc8 {[%emt 0:00:54]} 27. Ne2 {[%emt 0:03:59]} Rh6 {[%emt 0:06:49]} 28. Nbd4 {[%emt 0:00:50]} Nc5 {[%emt 0:00:14]} (28... Nxb2 $2 29. Rb1 $18) 29. b4 {[%emt 0:05:07]} Nd7 {[%emt 0:00:25]} 30. Qd2 {[%emt 0:00:31]} (30. Qb3 $15) 30... f6 {[%emt 0:03:10]} (30... Qc7 $17 31. f4 Nb6) 31. exf6 $14 {[%emt 0:00:29]} Rxf6 {[%emt 0:02:05]} 32. Nf4 $36 {[%emt 0:00:29][%mdl 2048] [#] Strongly threatening Nxd5. White has the initiative.} Bd6 {[%emt 0:04:45] Hoping for ...Rxf4.} 33. Ndxe6 {[%emt 0:00:32] And now Rd1 would win.} (33. Rxe6 $2 Bxf4 34. Qxf4+ Rxf4 $19) ({Don't play} 33. Nfxe6 Ne5 34. Nc5 (34. Nxg7 $2 {is the wrong capture.} Nc4 $19) 34... Qc7 (34... Ng4+ $2 35. Kg1 $18)) 33... Be5 {[%emt 0:00:44]} 34. Qxd5 {[%emt 0:01:15]} Rxc3 {[%emt 0:02:02] [#] Black cannot hold the game after this.} (34... Bxf4 $16 35. Nxf4 Rd6) 35. Nc5 $1 $18 {[%emt 0:00:11] Active counter play! A dynamic duo of knights.} Rc2+ $2 {[%emt 0:01:07]} (35... Ka7) 36. Ne2 {[%emt 0:00:12]} (36. Re2 $142 Rxe2+ 37. Kxe2 Qb5+ 38. Nfd3) 36... Rxc5 {[%emt 0:01:03]} (36... Bxg3+ 37. Kxg3 Nxc5) 37. bxc5 {[%emt 0:00:09] White is clearly winning.} Qxc5 {[%emt 0:00:04]} 38. Qxd7 {[%emt 0:01:05] Black must now prevent Qe8+.} Bxg3+ {[%emt 0:00:07]} 39. Nxg3 {[%emt 0:00:04] Weighted Error Value: White=0.11 (very precise) /Black=0.37.  Loses game:     	---       	Black=1      Mistake:       	White=2     	Black=3      Inaccurate:     	White=1     	---        OK:         	White=16    	Black=13     Best:        	White=1     	Black=1      Strong:       	White=1     	---} 1-0

[Event "10th Cesme Open-A 2024"]
[Site "Cesme"]
[Date "2024.06.27"]
[Round "5"]
[White "Rasulov, Vugar"]
[Black "Jafarli, Babak"]
[Result "1-0"]
[ECO "B12"]
[WhiteElo "2557"]
[BlackElo "2192"]
[Annotator "TA"]
[PlyCount "87"]
[EventDate "2024.06.23"]
[EventType "swiss"]
[EventCountry "TUR"]
[SourceTitle "playchess.com"]
[Source "ChessBase"]
[SourceQuality "1"]
[TimeControl "5400+30"]

{[%evp 9,87,14,3,0,0,0,21,10,24,-43,-31,-33,-15,-65,-39,-24,-24,-49,-61,-52,26,-19,7,0,53,46,53,53,89,100,101,87,58,77,60,56,79,69,96,102,102,107,98,93,90,100,104,97,110,67,62,58,481,495,484,487,735,726,715,798,829,798,717,493,495,441,422,252,755,592,584,575,1802,596,29982,29983,29984,29985,29984,29979]} 1. e4 {[%emt 0:02:00]} c6 {[%emt 0:01:00]} 2. d4 {[%emt 0:00:30]} d5 {[%emt 0:00:30]} 3. e5 {[%emt 0:00:30]} Bf5 {[%emt 0:00:00]} 4. Be3 {[%emt 0:00:00]} e6 {[%emt 0:01:00]} 5. Nd2 {[%emt 0:00:00]} Nd7 {[%emt 0:01:30]} 6. f4 {[%emt 0:00:30]} h5 {[%emt 0:02:30]} 7. Ngf3 {[%emt 0:00:30]} h4 {[%emt 0:03:30]} 8. Be2 {[%emt 0:02:30] The position is equal.} Nh6 {[%emt 0:03:30]} 9. Ng5 {[%emt 0:05:30]} (9. h3 $11) 9... Qb6 $15 {[%emt 0:09:30]} 10. Nb3 $1 {[%emt 0:09:30]} O-O-O {[%emt 0:00:30]} 11. Qd2 {[%emt 0:04:30]} (11. O-O $11) 11... Bb4 {[%emt 0:07:30]} 12. c3 {[%emt 0:00:30]} Be7 {[%emt 0:00:00]} 13. Bd3 {[%emt 0:08:30]} Bxd3 {[%emt 0:06:00]} 14. Qxd3 {[%emt 0:00:30]} Nf8 {[%emt 0:00:30]} (14... Bxg5 $15 15. fxg5 Nf5) 15. Nf3 {[%emt 0:00:30]} Nf5 {[%emt 0:00:30]} 16. O-O-O {[%emt 0:00:30]} f6 {[%emt 0:06:30]} ({Better is} 16... Nd7 $11) 17. Rde1 {[%emt 0:02:30]} Kb8 {[%emt 0:00:30]} 18. Bf2 {[%emt 0:00:30]} h3 {[%emt 0:05:30]} 19. g4 {[%emt 0:03:30]} Nh6 {[%emt 0:00:30]} 20. f5 {[%emt 0:01:30]} Nxg4 {[%emt 0:08:30]} 21. Bg3 {[%emt 0:00:30]} Ka8 {[%emt 0:00:30]} 22. exf6 {[%emt 0:02:30]} Nxf6 {[%emt 0:00:30]} 23. Ng5 {[%emt 0:00:30] Wards off Ne4} Rh5 {[%emt 0:00:30]} 24. Nxe6 {[%emt 0:00:30]} Nxe6 {[%emt 0:01:30]} 25. Rxe6 {[%emt 0:00:00]} ({Much weaker is} 25. fxe6 Ne4 $11) 25... Bf8 {[%emt 0:00:30]} 26. Qf3 {[%emt 0:01:00][%cal Oe6f6] [#] Threatens to win with Rxf6!} Rh8 {[%emt 0:00:30]} 27. Nd2 {[%emt 0:00:30] Dodges Ne4} Qb5 {[%emt 0:00:00]} 28. Rhe1 {[%emt 0:02:30]} c5 {[%emt 0:00:00]} 29. Be5 $40 {[%emt 0:01:30][%mdl 128] Black needs to defend precisely.} cxd4 {[%emt 0:00:30]} 30. Bxd4 {[%emt 0:00:00][%cal Oe1g1]} Bc5 $2 {[%emt 0:01:30][%mdl 8192] Loses the game.} (30... Bd6 $14) 31. a4 $1 $18 {[%emt 0:01:00]} Qxa4 {[%emt 0:00:30]} 32. Bxc5 {[%emt 0:00:30]} Ne4 {[%emt 0:00:30]} (32... Rc8 $142 33. Qe3 Rh5) 33. Nxe4 {[%emt 0:01:30][%cal Bd2e4,Be4d6,Bd6b5,Bb5c7,Bc7e6][%mdl 32]} Qa1+ {[%emt 0:00:30]} 34. Kc2 {[%emt 0:00:00][%cal Bc1c2,Bc2b1,Bb1a2][%mdl 32]} Qxe1 {[%emt 0:00:00]} 35. Nd6 {[%emt 0:00:00]} Qa1 {[%emt 0:00:00] Black is weak on the dark squares} 36. Qxd5 {[%emt 0:00:30][%csl Gd6][%cal Rd5b7] Active counter play!} Qa4+ {[%emt 0:00:30]} 37. Kb1 {[%emt 0:00:30]} Rd7 {[%emt 0:00:00]} 38. Qe4 {[%emt 0:02:30]} (38. c4 $142) 38... Qd1+ $2 {[%emt 0:04:00]} (38... Qxe4+ 39. Rxe4 (39. Nxe4 Rd1+ 40. Ka2 Rd5 $18) 39... b6) 39. Ka2 {[%emt 0:00:30] White threatens Re8+ and mate.} Rhd8 {[%emt 0:00:30]} 40. Nb5 {[%emt 0:01:30]} Rc8 {[%emt 0:00:30]} 41. Ba3 {[%emt 0:03:30]} (41. Bd6 $142 {White wants to mate with Re8.} a5 42. Qc4) 41... Qf1 {[%emt 0:02:30]} 42. Re8 {[%emt 0:00:30][%cal Re8c8] Against Qxb5. White mates.} Rdd8 {[%emt 0:00:30] [#]} 43. Nc7+ $1 {[%emt 0:00:30][%mdl 512]} Kb8 {[%emt 0:00:30]} 44. Ne6 {[%emt 0:00:30][%csl LRd8,LRg7] Weighted Error Value: White=0.46/Black=0.51.  Loses game:     	---       	Black=1      Mistake:       	White=4     	Black=4      Inaccurate:     	White=2     	Black=6      OK:         	White=10    	Black=10     Best:        	White=1     	Black=2      Strong:       	White=2     	---} 1-0

[Event "10th Cesme Open-A 2024"]
[Site "Cesme"]
[Date "2024.06.27"]
[Round "5"]
[White "Grover, Sahaj"]
[Black "Koksal, Ege"]
[Result "1-0"]
[ECO "C43"]
[WhiteElo "2510"]
[BlackElo "2297"]
[Annotator "TA"]
[PlyCount "107"]
[EventDate "2024.06.23"]
[EventType "swiss"]
[EventCountry "TUR"]
[SourceTitle "playchess.com"]
[Source "ChessBase"]
[SourceQuality "1"]
[TimeControl "5400+30"]

{[%evp 9,107,27,29,0,0,5,14,15,8,15,10,15,23,5,0,0,62,56,59,62,88,86,89,84,86,87,97,74,87,90,85,91,96,91,124,105,128,128,134,120,130,131,141,135,101,75,126,101,110,99,120,93,128,129,122,127,164,165,211,213,302,297,334,334,437,437,421,416,678,368,678,664,671,656,643,416,606,513,29984,29970,29970,29971,29971,29975,29977,29977,29977,29978,29979,29979,29980,29981,29981,29979,29979,29980,29980,29981,29994,29993]} 1. e4 {[%emt 0:06:00]} e5 {[%emt 0:04:00]} 2. Nf3 {[%emt 0:00:30]} Nf6 {[%emt 0:00:30]} 3. d4 {[%emt 0:00:30]} Nxe4 {[%emt 0:00:30]} 4. Bd3 {[%emt 0:00:00]} Nc6 {[%emt 0:02:30]} 5. Nxe5 {[%emt 0:00:00]} Nxe5 {[%emt 0:00:30]} 6. dxe5 {[%emt 0:00:30]} Nc5 {[%emt 0:00:30]} 7. Bc4 {[%emt 0:00:30]} d6 {[%emt 0:00:00]} 8. Qf3 {[%emt 0:00:00][%csl Gc4][%cal Rf3f7] The position is equal.} Ne6 {[%emt 0:00:00]} 9. Be3 {[%emt 0:00:00]} dxe5 {[%emt 0:01:30]} 10. Nd2 {[%emt 0:00:00]} Bd6 {[%emt 0:02:30]} 11. O-O-O {[%emt 0:00:00]} O-O {[%emt 0:02:30]} 12. Ne4 {[%emt 0:00:00]} Nd4 {[%emt 0:12:30]} 13. Bxd4 $14 {[%emt 0:02:00]} exd4 {[%emt 0:00:30]} 14. Rxd4 {[%emt 0:00:30]} Qe7 {[%emt 0:01:30] Black is weak on the light squares} (14... Bf4+ 15. Qxf4 Qxd4 16. Rd1 Qxc4 17. Nf6+ gxf6 18. Qxc4 $18) 15. Re1 {[%emt 0:12:30]} Be6 {[%emt 0:03:30] And now ...Bxc4 would win.} 16. Nxd6 {[%emt 0:05:30]} cxd6 {[%emt 0:00:30][%cal Bc7d6,Bd6e5][%mdl 32]} 17. Qe3 {[%emt 0:01:30] Inhibits Qg5. White is much more active.} Rac8 {[%emt 0:11:30][%cal Oe7c7]} 18. Bxe6 {[%emt 0:00:30]} fxe6 {[%emt 0:00:30]} 19. f4 {[%emt 0:01:30]} e5 {[%emt 0:06:30]} 20. fxe5 {[%emt 0:03:30]} dxe5 {[%emt 0:00:30][%cal Oc8c2] [#]} 21. Re4 $1 {[%emt 0:00:30]} (21. Qxe5 Qxe5 22. Rxe5 Rf2 $14) 21... Qf7 {[%emt 0:03:30] [#]} 22. b3 $1 {[%emt 0:00:30]} (22. Rxe5 $6 Qxa2 23. c3 Rcd8 $11) 22... Qf2 {[%emt 0:08:30]} 23. Re2 {[%emt 0:01:30][%cal Be1e2,Be2e5,Be5g5,Bg5g3][%mdl 32]} (23. Rxe5 $2 Qxc2#) 23... Qxe3+ {[%emt 0:00:30]} 24. R4xe3 {[%emt 0:00:30]} ({But not} 24. R2xe3 $6 Rf2 25. Re2 Rxe2 26. Rxe2 Re8 $14) 24... Rc5 {[%emt 0:00:30]} 25. Rxe5 {[%emt 0:00:30]} Rxe5 {[%emt 0:00:30]} 26. Rxe5 $16 {[%emt 0:00:30][%mdl 4096] Endgame. KR-KR} Rf2 {[%emt 0:00:30]} 27. Rg5 {[%emt 0:00:30]} g6 {[%emt 0:00:30]} (27... h6 $142 28. Rg4 Kh7) 28. Rg3 {[%emt 0:00:30]} Kg7 {[%emt 0:00:30]} 29. Kb2 {[%emt 0:02:30]} Kf6 {[%emt 0:26:48]} 30. b4 Ke5 {[%emt 0:02:36]} 31. Kb3 {[%emt 0:01:00]} Re2 {[%emt 0:02:45]} 32. c4 {[%emt 0:02:30]} Kf5 {[%emt 0:00:44]} 33. c5 {[%emt 0:01:30]} Ke5 {[%emt 0:00:01]} (33... Kf6 $142 34. Rh3 h5) 34. Rh3 $18 {[%emt 0:02:30]} Kd5 {[%emt 0:02:38]} (34... h5 {was necessary.} 35. Rg3 a5) 35. Rxh7 {[%emt 0:01:30]} Kc6 {[%emt 0:00:03]} 36. g3 {[%emt 0:00:30]} a5 {[%emt 0:01:07]} 37. a3 {[%emt 0:00:30]} (37. bxa5 g5 38. a4 Re3+ 39. Kc2 Ra3 $18) 37... axb4 {[%emt 0:00:29]} 38. axb4 {[%emt 0:00:30]} g5 {[%emt 0:00:20]} (38... b5 $142 39. Rg7 Re3+ 40. Kc2 Re2+ 41. Kc3 Rxh2 42. Rxg6+ Kd5 43. Rd6+ Ke5) 39. Kc4 {[%emt 0:01:30][%csl Gc4][%cal Rb4b5]} Rc2+ $2 {[%emt 0:00:30]} (39... b5+ 40. Kd4 Rd2+ 41. Kc3 Rf2) 40. Kd4 {[%emt 0:00:30]} Rb2 {[%emt 0:00:00]} 41. Kc3 {[%emt 0:00:00]} Rf2 {[%emt 0:00:25]} 42. Rg7 {[%emt 0:00:00]} Rxh2 {[%emt 0:01:06]} (42... b5 $142 43. cxb6 (43. Rxg5 Rxh2 44. Rg6+ Kd7 $18) 43... Kxb6 44. Rg6+ (44. Rxg5 Rxh2 45. b5 Kc7 $18) 44... Kc7) 43. Rg6+ {[%emt 0:00:00]} Kb5 {[%emt 0:01:09]} (43... Kd7 $18 44. Kc4 (44. Rxg5 Rh6 $18) 44... g4 45. Rg7+ (45. Rxg4 Rh6 $18) 45... Ke6) 44. Rb6+ {[%emt 0:00:00] White mates.} Ka4 {[%emt 0:00:00]} 45. Rxb7 {[%emt 0:00:30]} Rg2 {[%emt 0:00:26]} 46. c6 {[%emt 0:00:30]} Rxg3+ {[%emt 0:00:30]} 47. Kc4 {[%emt 0:00:00][%cal Rb7a7]} Rg4+ {[%emt 0:00:00]} 48. Kc5 {[%emt 0:00:00]} Rg1 {[%emt 0:00:00]} 49. Ra7+ {[%emt 0:00:30]} Kb3 {[%emt 0:00:00]} 50. b5 {[%emt 0:00:00]} Rc1+ {[%emt 0:00:00]} 51. Kd6 {[%emt 0:00:00]} Kc4 {[%emt 0:00:00]} 52. c7 {[%emt 0:00:30]} Kxb5 {[%emt 0:00:00]} 53. Rb7+ {[%emt 0:00:00]} Kc4 {[%emt 0:03:07]} 54. c8=R+ {[%emt 0:00:00] Weighted Error Value: White=0.13 (very precise) /Black=0.40.  Mistake:       	---       	Black=7      Inaccurate:     	White=1     	Black=4      OK:         	White=17    	Black=10     Best:        	White=3     	Black=1      Strong:       	White=2     	---} 1-0

[Event "10th Cesme Open-A 2024"]
[Site "Cesme"]
[Date "2024.06.27"]
[Round "5"]
[White "Isik, Alparslan"]
[Black "Eke, Salih"]
[Result "1-0"]
[ECO "D35"]
[WhiteElo "2469"]
[BlackElo "2251"]
[Annotator "RC"]
[PlyCount "113"]
[EventDate "2024.06.23"]
[EventType "swiss"]
[EventCountry "TUR"]
[SourceTitle "playchess.com"]
[Source "ChessBase"]
[SourceQuality "1"]
[TimeControl "5400+30"]

1. d4 {[%emt 0:01:00]} d5 {[%emt 0:01:00]} 2. c4 {[%emt 0:00:30]} e6 {[%emt 0:00:30]} 3. Nc3 {[%emt 0:00:00]} Nf6 {[%emt 0:00:30]} 4. cxd5 {[%emt 0:00:00]} exd5 {[%emt 0:00:00]} 5. Bg5 {[%emt 0:00:00]} Nbd7 {[%emt 0:04:00]} 6. e3 {[%emt 0:02:00]} Be7 {[%emt 0:01:30]} 7. Bd3 {[%emt 0:00:30]} O-O {[%emt 0:02:30]} 8. Nge2 {[%emt 0:00:30]} b6 {[%emt 0:01:30]} 9. Nf4 {[%emt 0:08:30]} h6 {[%emt 0:05:30]} 10. h4 {[%emt 0:02:30]} Bb7 {[%emt 0:01:30]} 11. Qf3 {[%emt 0:00:30]} c5 {[%emt 0:04:30]} 12. O-O-O {[%emt 0:07:30]} cxd4 {[%emt 0:04:30]} 13. exd4 {[%emt 0:00:00]} Rc8 {[%emt 0:00:30]} 14. Kb1 {[%emt 0:01:00]} Rxc3 {[%emt 0:15:30]} 15. bxc3 {[%emt 0:00:30]} Ne4 {[%emt 0:00:30]} 16. Bxe4 {[%emt 0:21:30]} dxe4 {[%emt 0:00:30]} 17. Bxe7 {[%emt 0:02:30]} Qxe7 {[%emt 0:05:30]} 18. Qe3 {[%emt 0:00:00]} Rc8 {[%emt 0:00:30]} 19. d5 {[%emt 0:08:00]} Nc5 {[%emt 0:06:30]} 20. Rd4 {[%emt 0:03:30]} Qd7 {[%emt 0:04:30]} 21. Rc1 {[%emt 0:03:30]} a5 {[%emt 0:03:30]} 22. Ka1 {[%emt 0:08:30]} Qd6 {[%emt 0:01:30]} 23. Rb1 {[%emt 0:03:30]} Ba6 {[%emt 0:01:30]} 24. f3 {[%emt 0:01:30]} exf3 {[%emt 0:05:30]} 25. gxf3 {[%emt 0:00:30]} Kf8 {[%emt 0:01:30]} 26. Qd2 {[%emt 0:02:30]} Re8 {[%emt 0:01:30]} 27. Rg1 {[%emt 0:03:30]} Re5 {[%emt 0:01:30]} 28. c4 {[%emt 0:04:08]} a4 {[%emt 0:13:14]} 29. Nd3 {[%emt 0:01:48]} Nxd3 {[%emt 0:02:35]} 30. Qxd3 {[%emt 0:00:06]} Qb4 {[%emt 0:00:20]} 31. Qd2 {[%emt 0:00:53]} Qxd2 {[%emt 0:01:06]} 32. Rxd2 {[%emt 0:00:47]} Bxc4 {[%emt 0:00:30]} 33. d6 {[%emt 0:00:30]} Re8 {[%emt 0:00:00]} 34. Kb2 {[%emt 0:00:49]} Rd8 {[%emt 0:00:05]} 35. Kc3 {[%emt 0:00:38]} b5 {[%emt 0:00:27]} 36. Kb4 {[%emt 0:00:27]} g6 {[%emt 0:00:38]} 37. a3 {[%emt 0:03:15]} Ke8 {[%emt 0:00:59]} 38. Re1+ {[%emt 0:00:05]} Kd7 {[%emt 0:00:32]} 39. Re7+ {[%emt 0:00:30]} Kc6 {[%emt 0:00:30]} 40. Rc7+ {[%emt 0:00:30]} Kb6 {[%emt 0:00:00]} 41. Rd4 {[%emt 0:00:53]} g5 {[%emt 0:00:50]} 42. hxg5 {[%emt 0:00:30]} hxg5 {[%emt 0:00:30]} 43. Rc5 {[%emt 0:00:00]} Rd7 {[%emt 0:02:25]} 44. Rxg5 {[%emt 0:00:23]} Kc6 {[%emt 0:00:12]} 45. Rc5+ {[%emt 0:00:27]} Kb6 {[%emt 0:00:02]} 46. f4 {[%emt 0:01:14]} Bf1 {[%emt 0:00:15]} 47. Re5 {[%emt 0:00:30]} Kc6 {[%emt 0:00:26]} 48. Re7 {[%emt 0:00:17]} Rxd6 {[%emt 0:01:07]} 49. Rxd6+ {[%emt 0:00:30]} Kxd6 {[%emt 0:00:30]} 50. Rxf7 {[%emt 0:00:00]} Ke6 {[%emt 0:00:20]} 51. Rb7 {[%emt 0:01:47]} Kf5 {[%emt 0:02:00]} 52. Rxb5+ {[%emt 0:00:35]} Bxb5 {[%emt 0:00:30]} 53. Kxb5 {[%emt 0:00:30]} Kxf4 {[%emt 0:00:30]} 54. Kxa4 {[%emt 0:00:00]} Ke5 {[%emt 0:00:00]} 55. Kb5 {[%emt 0:00:00]} Kd6 {[%emt 0:00:00]} 56. Kb6 {[%emt 0:00:24]} Kd7 {[%emt 0:00:16]} 57. Kb7 {[%emt 0:00:00]} 1-0

[Event "10th Cesme Open-A 2024"]
[Site "Cesme"]
[Date "2024.06.27"]
[Round "5"]
[White "Fromm, Marius"]
[Black "Kharitonov, Alexandr"]
[Result "1/2-1/2"]
[ECO "B12"]
[WhiteElo "2465"]
[BlackElo "2522"]
[Annotator "TA"]
[PlyCount "22"]
[EventDate "2024.06.23"]
[EventType "swiss"]
[EventCountry "TUR"]
[SourceTitle "playchess.com"]
[Source "ChessBase"]
[SourceQuality "1"]
[TimeControl "5400+30"]

{[%evp 9,22,15,29,0,0,0,0,-11,-25,-20,-4,-18,-26,-16,0]} 1. e4 {[%emt 0:01:00]} c6 {[%emt 0:01:00]} 2. d4 {[%emt 0:00:00]} d5 {[%emt 0:00:30]} 3. e5 {[%emt 0:00:00]} Bf5 {[%emt 0:00:30]} 4. h4 {[%emt 0:00:00]} h6 {[%emt 0:03:30]} 5. g4 {[%emt 0:00:00]} Bd7 {[%emt 0:00:30][%cal Oc6c5]} 6. Nc3 {[%emt 0:03:30][%cal Bb1c3,Bc3a4,Ba4c5][%mdl 32]} e6 {[%emt 0:00:30]} 7. Na4 {[%emt 0:05:30]} Na6 {[%emt 0:19:30]} 8. Bxa6 {[%emt 0:11:30] [#] Threatens to win with Bd3.} Qa5+ {[%emt 0:00:30]} 9. c3 {[%emt 0:00:30]} Qxa6 {[%emt 0:00:30]} 10. Nc5 $1 {[%emt 0:00:30]} Bxc5 {[%emt 0:01:30]} 11. dxc5 {[%emt 0:00:00]} h5 {[%emt 0:01:30] Not much happened in this game.   Weighted Error Value: White=0.07 (flawless) /Black=0.00 (flawless) .  OK:         	---       	Black=4      Strong:       	White=1     	---} 1/2-1/2